bitfinex/quotes_BTCUSD_20250225
["timestamp","ask_amount","ask_price","bid_price","bid_amount"]
[1740475425831,1.20515691,89150.0,89149.0,1.103]
[1740475426016,1.20515691,89150.0,89149.0,1.11715553]
[1740475426598,1.18662423,89150.0,89149.0,1.23976535]
[1740475426761,1.12362619,89150.0,89149.0,1.28560982]
[1740475426973,1.10947066,89150.0,89149.0,1.23976535]
[1740475427175,1.10947066,89150.0,89149.0,1.17976535]
[1740475427396,1.10947066,89150.0,89149.0,1.29976535]
[1740475427598,1.01643969,89150.0,89149.0,1.31297151]
[1740475427835,0.72144752,89150.0,89149.0,1.23720982]
[1740475428025,0.60998558,89150.0,89149.0,1.15690982]
[1740475428224,0.58058563,89150.0,89149.0,1.15690982]
[1740475428520,0.55897731,89150.0,89149.0,1.17392617]
[1740475428674,0.51976132,89150.0,89149.0,1.15290982]
[1740475428886,0.50361243,89150.0,89149.0,1.15290982]
[1740475429093,0.44378198,89150.0,89149.0,1.15290982]
[1740475429409,0.41438203,89150.0,89149.0,1.16706535]
[1740475429610,0.15723872,89150.0,89149.0,1.16706535]
[1740475429817,0.0017012,89186.0,89185.0,0.053]
[1740475430027,0.0017012,89186.0,89185.0,0.38936951]
[1740475430181,0.0017012,89186.0,89185.0,0.3878]
[1740475430381,0.0017012,89186.0,89185.0,0.98484085]
[1740475432445,0.01930221,89186.0,89185.0,0.98484085]
[1740475432631,0.01930221,89186.0,89185.0,1.04484085]
[1740475436181,0.01930221,89186.0,89185.0,1.05760085]
[1740475438722,0.5,89201.0,89200.0,0.173]
[1740475438905,0.0016996,89216.0,89215.0,0.173]
[1740475439103,0.0016996,89216.0,89215.0,0.98484085]
[1740475439311,0.0016996,89216.0,89215.0,1.04484085]
[1740475440515,0.0016996,89216.0,89215.0,1.05756085]
[1740475440718,0.077,89263.0,89216.0,0.01454085]
[1740475440719,0.327,89227.0,89216.0,0.01454085]
[1740475440949,0.04625194,89254.0,89218.0,0.01454085]
[1740475441217,0.0573854,89254.0,89223.0,0.01454085]
[1740475441573,0.01113346,89254.0,89227.0,0.16454085]
[1740475441781,0.01113346,89254.0,89229.0,0.01454085]
[1740475441936,0.01113346,89254.0,89231.0,0.01454085]
[1740475442136,0.01113346,89254.0,89232.0,0.0317367]
[1740475442302,0.01113346,89254.0,89235.0,0.01454085]
[1740475442503,0.0016984,89282.0,89250.0,0.01454085]
[1740475442746,0.0016984,89282.0,89252.0,0.01454085]
[1740475442921,0.0016984,89282.0,89254.0,0.01454085]
[1740475443126,0.0016984,89282.0,89256.0,0.16454085]
[1740475443325,0.0016984,89282.0,89258.0,0.10974085]
[1740475443509,0.0016984,89282.0,89260.0,0.01454085]
[1740475443718,0.0016984,89282.0,89262.0,0.01454085]
[1740475443960,0.0016984,89282.0,89264.0,0.16454085]
[1740475444122,0.0016984,89282.0,89266.0,0.01454085]
[1740475444339,0.0016984,89282.0,89265.0,0.00156741]
[1740475444340,0.0016984,89282.0,89277.0,0.10974085]
[1740475444538,0.0016984,89282.0,89280.0,0.0975]
[1740475444757,0.0016984,89282.0,89281.0,0.00156711]
[1740475444941,0.0016984,89282.0,89281.0,1.00199693]
[1740475445143,0.0016984,89282.0,89281.0,1.00042982]
[1740475445563,0.0016984,89282.0,89281.0,1.00492582]
[1740475445741,0.0016996,89306.0,89282.0,0.16454085]
[1740475445942,0.0016996,89306.0,89284.0,0.01454085]
[1740475446218,0.0016996,89306.0,89286.0,0.16454085]
[1740475446334,0.0016996,89306.0,89288.0,0.16454085]
[1740475446535,0.0016996,89306.0,89291.0,0.2475]
[1740475446729,0.0016996,89306.0,89293.0,0.01454085]
[1740475446992,0.0016996,89306.0,89295.0,0.16454085]
[1740475447195,0.0016996,89306.0,89298.0,0.01454085]
[1740475447405,0.0016996,89306.0,89300.0,0.26274085]
[1740475447600,0.0016996,89306.0,89302.0,0.26274085]
[1740475447816,0.0016996,89306.0,89302.0,0.27542085]
[1740475448340,0.0016996,89306.0,89302.0,0.27546085]
[1740475448536,0.0016996,89306.0,89302.0,1.19774008]
[1740475448871,0.5,89318.0,89302.0,1.21046008]
[1740475449073,0.01757407,89328.0,89304.0,0.01454085]
[1740475449318,0.01757407,89328.0,89318.0,0.3218006]
[1740475449543,0.01757407,89328.0,89320.0,0.01454085]
[1740475449724,0.01757407,89328.0,89322.0,0.01454085]
[1740475449930,0.01757407,89328.0,89324.0,0.01454085]
[1740475450128,0.01757407,89328.0,89323.0,1.72226716]
[1740475450129,0.01757407,89328.0,89326.0,0.01454085]
[1740475450337,0.10435575,89358.0,89327.0,0.87170801]
[1740475450626,0.10435575,89358.0,89328.0,0.87014145]
[1740475450827,0.10435575,89358.0,89330.0,0.01454085]
[1740475451050,0.01492131,89358.0,89332.0,0.01454085]
[1740475451248,0.01492131,89358.0,89334.0,0.01454085]
[1740475451452,0.1517008,89366.0,89336.0,0.01454085]
[1740475451652,0.01530114,89358.0,89338.0,0.01454085]
[1740475451798,0.1517008,89366.0,89339.0,0.08873725]
[1740475451998,0.02820862,89360.0,89339.0,0.08873725]
[1740475452238,0.02820862,89360.0,89340.0,0.01276]
[1740475452465,0.02820862,89360.0,89341.0,0.00156653]
[1740475452628,0.02820862,89360.0,89341.0,0.01610738]
[1740475452831,0.02820862,89360.0,89343.0,0.01454085]
[1740475453032,0.02820862,89360.0,89342.0,0.09079741]
[1740475453033,0.02820862,89360.0,89345.0,0.01454085]
[1740475453238,0.02820862,89360.0,89347.0,0.01454085]
[1740475453437,0.02820862,89360.0,89348.0,0.01428638]
[1740475453788,0.02820862,89360.0,89349.0,0.87014145]
[1740475454113,0.02820862,89360.0,89350.0,0.08844278]
[1740475454281,0.02820862,89360.0,89351.0,0.00156647]
[1740475454484,0.02820862,89360.0,89349.0,0.8556006]
[1740475454685,0.02820862,89360.0,89350.0,0.00156652]
[1740475454898,0.03520862,89360.0,89350.0,0.00156652]
[1740475455043,0.03520862,89360.0,89350.0,0.04235929]
[1740475455242,0.03520862,89360.0,89351.0,0.87014145]
[1740475455438,0.03520862,89360.0,89353.0,0.01454085]
[1740475455439,0.02820862,89360.0,89353.0,0.01454085]
[1740475455719,0.03520862,89360.0,89354.0,0.8556006]
[1740475455836,0.01757024,89359.0,89354.0,0.8556006]
[1740475458384,0.01735024,89359.0,89355.0,0.00156657]
[1740475458554,0.01735024,89359.0,89345.0,0.00156649]
[1740475458749,0.03690742,89360.0,89345.0,0.00156649]
[1740475458973,0.02990742,89360.0,89345.0,0.00156649]
[1740475459376,0.02990742,89360.0,89346.0,0.01454085]
[1740475459572,0.02990742,89360.0,89347.0,0.00156648]
[1740475459999,0.02990742,89360.0,89348.0,0.01454085]
[1740475460174,0.02990742,89360.0,89350.0,0.01454085]
[1740475460380,0.006,89359.0,89352.0,0.01454085]
[1740475460582,0.006,89359.0,89354.0,0.01454085]
[1740475460789,0.02990742,89360.0,89356.0,0.01454085]
[1740475461180,0.02990742,89360.0,89357.0,0.0015664]
[1740475461381,0.15,89372.0,89346.0,0.01454085]
[1740475461533,0.001698,89393.0,89346.0,0.01454085]
[1740475461534,0.007,89360.0,89348.0,0.01454085]
[1740475461715,0.007,89360.0,89350.0,0.01454085]
[1740475462057,0.01455371,89360.0,89352.0,0.01454085]
[1740475462368,0.006,89360.0,89354.0,0.01454085]
[1740475462518,0.006,89360.0,89356.0,0.01454085]
[1740475462724,0.006,89360.0,89357.0,0.00156626]
[1740475463532,0.5452,89375.0,89357.0,0.00156626]
[1740475463735,0.108689,89375.0,89357.0,0.00156626]
[1740475463932,0.007,89360.0,89357.0,0.00156626]
[1740475464375,0.05951487,89375.0,89357.0,0.00156626]
[1740475464579,0.05951487,89375.0,89358.0,0.01454085]
[1740475464779,0.02131487,89375.0,89360.0,0.01454085]
[1740475464984,0.02131487,89375.0,89354.0,0.01268]
[1740475464985,0.02131487,89375.0,89362.0,0.01454085]
[1740475465183,0.02131487,89375.0,89363.0,0.00156614]
[1740475465399,0.01431487,89375.0,89363.0,0.00156614]
[1740475465882,0.15,89389.0,89363.0,0.00156614]
[1740475466089,0.15,89378.0,89350.0,0.005]
[1740475466335,0.15,89378.0,89308.0,0.0772]
[1740475466336,0.06,89369.0,89330.0,0.00156636]
[1740475466531,0.0778,89367.0,89325.0,0.01268]
[1740475466749,0.2278,89367.0,89326.0,0.00156662]
[1740475467180,0.2278,89367.0,89325.0,0.01268]
[1740475467382,0.2901,89358.0,89316.0,0.01272]
[1740475467599,0.2901,89358.0,89317.0,0.0015668]
[1740475467775,0.0175732,89357.0,89317.0,0.0015668]
[1740475468403,0.0175732,89357.0,89327.0,0.08943444]
[1740475468577,0.0175732,89357.0,89337.0,0.01454085]
[1740475468751,0.2301,89358.0,89339.0,0.01454085]
[1740475468960,0.01757074,89353.0,89340.0,0.01212068]
[1740475469518,0.01757074,89353.0,89327.0,0.08943444]
[1740475469747,0.01757074,89353.0,89328.0,0.00156659]
[1740475469920,0.01757074,89353.0,89328.0,0.01268]
[1740475470125,0.01757074,89353.0,89330.0,0.01454085]
[1740475470325,0.01757074,89353.0,89332.0,0.01454085]
[1740475470571,0.01757074,89353.0,89334.0,0.01454085]
[1740475470772,0.01757074,89353.0,89333.0,0.01182219]
[1740475470971,0.01757074,89353.0,89328.0,0.01268]
[1740475471144,0.01757074,89353.0,89334.0,0.00156654]
[1740475471330,0.01757074,89353.0,89330.0,0.01454085]
[1740475471529,0.01757074,89353.0,89314.0,0.0008488]
[1740475471758,0.007,89353.0,89315.0,0.00156667]
[1740475471974,0.007,89353.0,89316.0,0.08943444]
[1740475472147,0.15,89358.0,89317.0,0.00156665]
[1740475472641,0.15,89358.0,89318.0,0.01454085]
[1740475472885,0.15,89358.0,89320.0,0.01454085]
[1740475473140,0.15,89358.0,89322.0,0.01454085]
[1740475473362,0.007,89353.0,89324.0,0.01454085]
[1740475473550,0.007,89353.0,89325.0,0.00156664]
[1740475473838,0.0773,89352.0,89325.0,0.00156664]
[1740475474394,0.02049849,89351.0,89325.0,0.00156664]
[1740475474594,0.08072481,89350.0,89327.0,0.01454085]
[1740475474796,0.23072481,89350.0,89329.0,0.01454085]
[1740475475019,0.08072481,89350.0,89331.0,0.01454085]
[1740475475259,0.08072481,89350.0,89333.0,0.01454085]
[1740475475461,0.0833,89352.0,89335.0,0.01454085]
[1740475475462,0.01757289,89345.0,89335.0,0.01454085]
[1740475475648,0.01757289,89345.0,89337.0,0.01454085]
[1740475475840,0.01757289,89345.0,89339.0,0.01454085]
[1740475476017,0.01757289,89345.0,89341.0,0.01454085]
[1740475476225,0.01757289,89345.0,89343.0,0.01454085]
[1740475476594,0.02049849,89344.0,89343.0,0.01454085]
[1740475477153,0.02049849,89344.0,89328.0,0.01454085]
[1740475477354,0.02049849,89344.0,89330.0,0.01454085]
[1740475477562,0.17049849,89344.0,89331.0,0.00156666]
[1740475477842,0.17049849,89344.0,89332.0,0.01454085]
[1740475478049,0.02049849,89344.0,89333.0,0.00156673]
[1740475478362,0.02749849,89344.0,89327.0,0.00156676]
[1740475478564,0.02049849,89343.0,89327.0,0.00156676]
[1740475478777,0.02049849,89343.0,89327.0,0.01268]
[1740475478982,0.02049849,89343.0,89197.0,0.00012391]
[1740475478983,0.15,89341.0,89314.0,0.00241563]
[1740475479181,0.06,89333.0,89314.0,0.0008488]
[1740475479423,0.15,89330.0,89314.0,0.0008488]
[1740475479597,0.21,89330.0,89314.0,0.0008488]
[1740475479810,0.01014336,89329.0,89314.0,0.0008488]
[1740475480094,0.08072481,89329.0,89314.0,0.0008488]
[1740475480295,0.08072481,89329.0,89297.0,0.00156719]
[1740475480486,0.08072481,89329.0,89299.0,0.01268]
[1740475480643,0.08072481,89329.0,89300.0,0.01610802]
[1740475480824,0.15,89330.0,89300.0,0.01610802]
[1740475480825,0.08072481,89328.0,89300.0,0.01610802]
[1740475481410,0.02049849,89327.0,89300.0,0.01610802]
[1740475481852,0.02049849,89327.0,89302.0,0.01454085]
[1740475482026,0.02049849,89327.0,89304.0,0.01454085]
[1740475482230,0.02049849,89327.0,89306.0,0.01454085]
[1740475482435,0.02049849,89327.0,89308.0,0.01454085]
[1740475482643,0.02049849,89327.0,89310.0,0.01454085]
[1740475482848,0.02049849,89327.0,89312.0,0.01454085]
[1740475483087,0.0175758,89323.0,89314.0,0.01454085]
[1740475483301,0.0175758,89323.0,89316.0,0.01454085]
[1740475483540,0.0175758,89323.0,89318.0,0.01454085]
[1740475483705,0.0175758,89323.0,89320.0,0.01454085]
[1740475483863,0.0175758,89323.0,89322.0,0.01454085]
[1740475484067,0.0175758,89323.0,89305.0,0.01454085]
[1740475484269,0.02049849,89326.0,89322.0,0.04575693]
[1740475484617,0.0815,89359.0,89324.0,0.00954085]
[1740475484760,0.0815,89359.0,89325.0,0.00156654]
[1740475484966,0.5,89349.0,89325.0,0.00156654]
[1740475485407,0.15,89348.0,89313.0,0.08943444]
[1740475485582,0.15,89348.0,89316.0,0.03121608]
[1740475485948,0.5,89349.0,89317.0,0.00156664]
[1740475486333,0.5,89349.0,89318.0,0.03121608]
[1740475486476,0.15,89348.0,89319.0,0.0015666]
[1740475487193,0.15,89348.0,89317.0,0.033707]
[1740475487533,0.15,89348.0,89318.0,0.00156672]
[1740475487753,0.01757273,89341.0,89317.0,0.033707]
[1740475487890,0.01757273,89341.0,89319.0,0.001]
[1740475488092,0.01757273,89341.0,89320.0,0.00156677]
[1740475488342,0.01757273,89341.0,89321.0,0.01454085]
[1740475488477,0.01757273,89341.0,89323.0,0.01454085]
[1740475488685,0.01757273,89341.0,89324.0,0.00156678]
[1740475488916,0.01757273,89341.0,89325.0,0.01454085]
[1740475489106,0.01757273,89341.0,89327.0,0.01454085]
[1740475489310,0.01757273,89341.0,89329.0,0.01454085]
[1740475489510,0.01757273,89341.0,89331.0,0.01454085]
[1740475489804,0.01757273,89341.0,89333.0,0.01454085]
[1740475490011,0.01757273,89341.0,89335.0,0.01454085]
[1740475490216,0.01757273,89341.0,89337.0,0.01454085]
[1740475490416,0.156,89348.0,89318.0,0.001]
[1740475490417,0.156,89348.0,89339.0,0.01454085]
[1740475490641,0.15,89348.0,89340.0,0.00156665]
[1740475490851,0.15,89348.0,89341.0,0.01454085]
[1740475491043,0.15,89348.0,89341.0,0.01254085]
[1740475491570,0.15,89348.0,89338.0,0.0126]
[1740475491571,0.15,89348.0,89342.0,0.00156665]
[1740475492066,0.154,89348.0,89342.0,0.00156665]
[1740475492408,0.15,89348.0,89342.0,0.00156665]
[1740475493510,0.15,89348.0,89325.0,0.01256]
[1740475493631,0.15,89348.0,89326.0,0.00156677]
[1740475493825,0.156,89348.0,89342.0,0.001]
[1740475494437,0.15,89348.0,89327.0,0.01454085]
[1740475494649,0.154,89348.0,89329.0,0.01454085]
[1740475494851,0.154,89348.0,89331.0,0.01454085]
[1740475494852,0.01757287,89343.0,89331.0,0.01454085]
[1740475495089,0.01757287,89343.0,89333.0,0.01454085]
[1740475495245,0.01757287,89343.0,89332.0,0.00156666]
[1740475495246,0.01757287,89343.0,89325.0,0.01256]
[1740475495453,0.01757287,89343.0,89326.0,0.01610751]
[1740475495741,0.01757287,89343.0,89342.0,0.001]
[1740475497364,0.01757287,89343.0,89342.0,0.02802085]
[1740475497581,0.01757287,89343.0,89342.0,0.02702085]
[1740475497993,0.01957287,89343.0,89342.0,0.02702085]
[1740475498494,0.01757287,89343.0,89342.0,0.02702085]
[1740475498642,0.02057287,89343.0,89342.0,0.02702085]
[1740475499049,0.003,89343.0,89342.0,0.02702085]
[1740475499292,0.15,89348.0,89343.0,0.01454085]
[1740475499669,0.15,89348.0,89344.0,0.00156659]
[1740475499874,0.5016966,89349.0,89345.0,0.01454085]
[1740475500294,0.15,89348.0,89346.0,0.00134993]
[1740475500604,0.15,89348.0,89343.0,0.00134983]
[1740475501030,0.15,89348.0,89344.0,0.0124]
[1740475501216,0.15,89348.0,89345.0,0.01589085]
[1740475501983,0.155,89348.0,89346.0,0.01454085]
[1740475502378,0.15,89348.0,89346.0,0.01454085]
[1740475502579,0.5016966,89349.0,89347.0,0.01589085]
[1740475502782,0.5016966,89349.0,89348.0,0.01454085]
[1740475503020,0.5016966,89349.0,89347.0,0.01454085]
[1740475503021,0.4908966,89349.0,89345.0,0.01454085]
[1740475503167,0.4908966,89349.0,89347.0,0.01454085]
[1740475503365,0.5016966,89349.0,89347.0,0.01454085]
[1740475504199,0.15,89348.0,89347.0,0.01454085]
[1740475504902,0.16110843,89348.0,89347.0,0.02690085]
[1740475505177,0.01110843,89348.0,89347.0,0.02690085]
[1740475505403,0.01110843,89348.0,89347.0,0.02825068]
[1740475505611,0.02867833,89348.0,89347.0,0.02825068]
[1740475505977,0.02867833,89348.0,89347.0,0.02690085]
[1740475506546,0.02867833,89348.0,89334.0,0.01232]
[1740475506547,0.0493,89347.0,89334.0,0.01232]
[1740475506969,0.0493,89347.0,89324.0,0.00219863]
[1740475507537,0.06,89345.0,89324.0,0.0008483]
[1740475507751,0.1951,89336.0,89324.0,0.0008483]
[1740475507990,0.20620843,89336.0,89324.0,0.0008483]
[1740475508195,0.2329,89335.0,89324.0,0.0008483]
[1740475508542,0.22757646,89334.0,89324.0,0.0008483]
[1740475508697,0.06,89325.0,89301.0,0.00135127]
[1740475508879,0.06,89311.0,89256.0,0.08943444]
[1740475509076,0.06,89301.0,89280.0,0.016817]
[1740475509279,0.06,89301.0,89270.0,0.01232]
[1740475509280,0.34380843,89301.0,89270.0,0.01232]
[1740475509595,0.34380843,89301.0,89264.0,0.01232]
[1740475509596,0.05097656,89281.0,89264.0,0.01232]
[1740475509797,0.05097656,89281.0,89265.0,0.00135356]
[1740475509798,0.05097656,89280.0,89265.0,0.00135356]
[1740475510240,0.05097656,89280.0,89264.0,0.01232]
[1740475510564,0.05097656,89280.0,89265.0,0.00135362]
[1740475511092,0.01758622,89277.0,89265.0,0.00135362]
[1740475511975,0.01758622,89277.0,89266.0,0.00135366]
[1740475512316,0.16758622,89277.0,89253.0,0.01232]
[1740475512460,0.16758622,89277.0,89254.0,0.00135374]
[1740475512461,0.06,89270.0,89254.0,0.00135374]
[1740475512693,0.06,89265.0,89240.0,0.0013539]
[1740475512877,0.05097656,89263.0,89242.0,0.01232]
[1740475513078,0.01758859,89259.0,89242.0,0.01367437]
[1740475513387,0.02869702,89259.0,89237.0,0.01232]
[1740475513613,0.05097656,89256.0,89237.0,0.01232]
[1740475513814,0.01110843,89259.0,89236.0,0.000848]
[1740475513815,0.2331,89239.0,89236.0,0.000848]
[1740475513978,0.1958,89238.0,89236.0,0.000848]
[1740475514883,0.0458,89238.0,89236.0,0.000848]
[1740475515104,0.1958,89238.0,89236.0,0.000848]
[1740475515317,0.1978,89238.0,89236.0,0.000848]
[1740475516587,0.21539347,89238.0,89236.0,0.000848]
[1740475516996,0.05097656,89237.0,89236.0,0.000848]
[1740475518039,0.05097656,89225.0,89224.0,0.0008488]
[1740475518242,0.25584524,89225.0,89224.0,0.0008488]
[1740475518439,0.41412582,89225.0,89224.0,0.0008488]
[1740475518814,0.39761367,89225.0,89224.0,0.0008488]
[1740475519218,0.35098901,89225.0,89224.0,0.0008488]
[1740475519425,0.29098901,89225.0,89224.0,0.0008488]
[1740475519647,0.14098901,89225.0,89224.0,0.0008488]
[1740475520389,0.56508901,89225.0,89224.0,0.0008488]
[1740475520562,0.51810843,89225.0,89224.0,0.0008488]
[1740475521089,0.22618471,89225.0,89224.0,0.01538965]
[1740475521315,0.49999971,89225.0,89224.0,0.88168965]
[1740475521595,0.39787099,89225.0,89224.0,0.96985862]
[1740475521929,0.49999999,89225.0,89224.0,0.96985862]
[1740475522163,0.38248848,89225.0,89224.0,0.96985862]
[1740475522360,0.09766133,89237.0,89225.0,0.02791619]
[1740475522562,0.09766133,89237.0,89232.0,0.01454085]
[1740475522810,0.09766133,89237.0,89234.0,0.01454085]
[1740475523009,0.09766133,89237.0,89236.0,0.01454085]
[1740475523416,0.09766133,89237.0,89236.0,0.02791619]
[1740475523417,0.06332726,89237.0,89236.0,0.02791619]
[1740475523559,0.01759002,89238.0,89237.0,0.02791619]
[1740475523757,0.01759002,89238.0,89237.0,0.02827037]
[1740475523999,0.01759002,89238.0,89237.0,0.04295047]
[1740475524545,0.5,89245.0,89244.0,0.01237534]
[1740475524753,0.499,89245.0,89244.0,0.01589486]
[1740475524928,0.144835,89245.0,89244.0,0.01454085]
[1740475525167,0.001,89253.0,89245.0,0.01454085]
[1740475525442,0.0466,89277.0,89247.0,0.01354085]
[1740475525672,0.01789434,89285.0,89248.0,0.97942787]
[1740475525804,0.01789434,89285.0,89249.0,0.00135298]
[1740475526011,0.1212,89292.0,89249.0,0.00135298]
[1740475526205,0.15,89291.0,89249.0,0.00135298]
[1740475526821,0.08943444,89283.0,89250.0,0.01228]
[1740475527045,0.08943444,89283.0,89251.0,0.10051462]
[1740475527244,0.08943444,89283.0,89252.0,0.8663]
[1740475527432,0.15,89284.0,89253.0,0.0013533]
[1740475527633,0.15,89284.0,89254.0,0.01454085]
[1740475527855,0.15,89284.0,89256.0,0.01454085]
[1740475528067,0.15,89284.0,89258.0,0.01454085]
[1740475528279,0.65,89284.0,89260.0,0.01454085]
[1740475528442,0.01758477,89278.0,89262.0,0.01454085]
[1740475528666,0.01758477,89278.0,89264.0,0.01454085]
[1740475528867,0.01758477,89278.0,89259.0,0.01228]
[1740475528868,0.01758477,89278.0,89266.0,0.01454085]
[1740475529067,0.01758477,89278.0,89268.0,0.01454085]
[1740475529247,0.01758477,89278.0,89269.0,0.08957232]
[1740475529596,0.5,89284.0,89270.0,0.88084085]
[1740475529736,0.5,89284.0,89272.0,0.01454085]
[1740475530088,0.15,89283.0,89274.0,0.01454085]
[1740475530322,0.15,89283.0,89276.0,0.01454085]
[1740475530451,0.15,89283.0,89278.0,0.01454085]
[1740475530633,0.15,89283.0,89277.0,0.08821936]
[1740475530835,0.15,89283.0,89271.0,0.00135273]
[1740475531296,0.15,89283.0,89272.0,0.01454085]
[1740475531512,0.151,89283.0,89274.0,0.01454085]
[1740475531749,0.151,89283.0,89276.0,0.01454085]
[1740475531918,0.151,89283.0,89277.0,0.01228]
[1740475532365,0.0492,89282.0,89278.0,0.3235]
[1740475532560,0.0492,89282.0,89239.0,0.01137534]
[1740475532561,0.2311,89281.0,89279.0,0.3235]
[1740475533938,0.24868531,89281.0,89279.0,0.3235]
[1740475534147,0.24968531,89281.0,89279.0,0.3235]
[1740475535156,0.24968531,89281.0,89279.0,0.31328861]
[1740475535590,0.24968531,89281.0,89279.0,0.34461747]
[1740475535946,0.24968531,89281.0,89279.0,0.31328861]
[1740475537202,0.24968531,89281.0,89279.0,0.25371196]
[1740475538771,0.2921,89281.0,89279.0,0.25371196]
[1740475538981,0.2911,89281.0,89279.0,0.25371196]
[1740475539637,0.2941,89281.0,89279.0,0.25371196]
[1740475540042,0.2909605,89281.0,89279.0,0.25283603]
[1740475540452,0.2939605,89281.0,89279.0,0.25283603]
[1740475541003,0.2939605,89281.0,89279.0,0.3235]
[1740475541004,0.25862466,89280.0,89279.0,0.3235]
[1740475541199,0.15,89266.0,89253.0,0.3235]
[1740475541407,0.15,89266.0,89254.0,0.86765391]
[1740475541670,0.15,89266.0,89254.0,0.8663]
[1740475542080,0.15,89266.0,89255.0,0.00135404]
[1740475542464,0.15,89266.0,89256.0,0.05731853]
[1740475542666,0.25862466,89267.0,89257.0,0.00135404]
[1740475542878,0.25862466,89267.0,89258.0,0.04882703]
[1740475543486,0.0175885,89265.0,89258.0,0.04882703]
[1740475543716,0.1675885,89265.0,89258.0,0.04882703]
[1740475546123,0.1695885,89265.0,89258.0,0.04882703]
[1740475546930,0.152,89265.0,89258.0,0.04882703]
[1740475547562,0.152,89265.0,89259.0,0.04882703]
[1740475547759,0.002,89265.0,89262.0,0.01454085]
[1740475547961,0.002,89265.0,89262.0,0.01469561]
[1740475548285,0.5,89266.0,89264.0,0.01454085]
[1740475548486,0.5,89266.0,89265.0,0.60216788]
[1740475548721,0.5,89266.0,89265.0,0.67377716]
[1740475548861,0.5,89266.0,89265.0,0.60216788]
[1740475549575,0.21017546,89266.0,89265.0,0.60216788]
[1740475549779,0.001698,89283.0,89266.0,0.01454085]
[1740475549954,0.289824,89272.0,89266.0,0.01454085]
[1740475550156,0.001698,89283.0,89268.0,0.01454085]
[1740475550380,0.001698,89283.0,89271.0,0.08943444]
[1740475550698,0.001698,89283.0,89277.0,0.01454085]
[1740475550838,0.001698,89283.0,89279.0,0.01454085]
[1740475551039,0.09759673,89285.0,89284.0,0.01137534]
[1740475551252,0.01426177,89285.0,89284.0,1.44256325]
[1740475551505,0.00442489,89285.0,89284.0,1.44256325]
[1740475552391,0.00442489,89285.0,89284.0,1.43118791]
[1740475552581,0.00542489,89285.0,89284.0,1.44956325]
[1740475553000,0.00542489,89285.0,89284.0,1.43818791]
[1740475553206,0.00442489,89285.0,89284.0,1.42876706]
[1740475553422,0.001,89285.0,89284.0,1.43576706]
[1740475553639,0.001,89285.0,89284.0,1.45030791]
[1740475554559,0.001,89285.0,89284.0,0.90870791]
[1740475554758,0.5,89289.0,89284.0,0.88716706]
[1740475554993,0.5,89289.0,89285.0,0.10325756]
[1740475555221,0.17779125,89289.0,89287.0,0.01454085]
[1740475555443,0.16785574,89321.0,89289.0,0.01454085]
[1740475555662,0.322208,89299.0,89290.0,0.87684085]
[1740475555900,0.07359295,89299.0,89291.0,0.01454085]
[1740475556120,0.16785574,89321.0,89293.0,0.01454085]
[1740475556330,0.16785574,89321.0,89294.0,0.8623]
[1740475556533,0.01785574,89321.0,89296.0,0.01454085]
[1740475556645,0.01785574,89321.0,89297.0,0.10039983]
[1740475556857,0.0175779,89315.0,89298.0,0.8623]
[1740475557054,0.0175779,89315.0,89299.0,0.87438]
[1740475557267,0.0175779,89315.0,89300.0,0.01454085]
[1740475557477,0.0175779,89315.0,89302.0,0.01454085]
[1740475557817,0.0175779,89315.0,89304.0,0.01454085]
[1740475557974,0.0175779,89315.0,89306.0,0.01454085]
[1740475558412,0.0175779,89315.0,89307.0,0.8623]
[1740475558616,0.0175779,89315.0,89308.0,0.8623]
[1740475558816,0.01801089,89321.0,89308.0,0.8623]
[1740475559023,0.001,89315.0,89309.0,0.949738]
[1740475559227,0.001,89315.0,89310.0,0.3235]
[1740475559401,0.001,89315.0,89311.0,0.87684085]
[1740475559602,0.01818689,89322.0,89313.0,0.01454085]
[1740475559789,0.001,89315.0,89314.0,0.87684085]
[1740475559987,0.001,89315.0,89314.0,0.97593082]
[1740475560831,0.001,89315.0,89314.0,1.01044655]
[1740475561031,0.001,89315.0,89314.0,0.97593082]
[1740475561440,0.01816022,89345.0,89315.0,0.01454085]
[1740475561683,0.0786,89354.0,89317.0,0.01454085]
[1740475561684,0.151696,89353.0,89317.0,0.01454085]
[1740475561887,0.151696,89353.0,89318.0,0.09873062]
[1740475562311,0.01964882,89349.0,89318.0,0.09873062]
[1740475562480,0.0016966,89349.0,89319.0,0.01454085]
[1740475562810,0.01905148,89349.0,89321.0,0.01454085]
[1740475563022,0.01905148,89349.0,89323.0,0.01454085]
[1740475563191,0.01757084,89342.0,89323.0,0.01454085]
[1740475565157,0.01757084,89342.0,89324.0,0.01208]
[1740475565578,0.01757084,89342.0,89325.0,0.01454085]
[1740475566565,0.01757084,89342.0,89327.0,0.01454085]
[1740475566790,0.0476,89356.0,89327.0,0.01454085]
[1740475566791,0.15,89356.0,89328.0,0.42421564]
[1740475566997,0.06837816,89352.0,89328.0,0.42421564]
[1740475567201,0.04862466,89342.0,89329.0,0.01208]
[1740475567439,0.04862466,89340.0,89329.0,0.01208]
[1740475567642,0.06,89334.0,89322.0,0.005]
[1740475567839,0.06,89334.0,89280.0,0.111112]
[1740475567840,0.06,89322.0,89308.0,0.01208]
[1740475568081,0.00834866,89316.0,89292.0,0.3235]
[1740475568271,0.06,89305.0,89293.0,0.03235]
[1740475568472,0.06,89305.0,89292.0,0.01208]
[1740475568651,0.15,89310.0,89292.0,0.01208]
[1740475568841,0.06,89305.0,89292.0,0.01208]
[1740475569048,0.06,89305.0,89280.0,0.3235]
[1740475569049,0.19862466,89304.0,89280.0,0.3235]
[1740475569393,0.15,89304.0,89288.0,0.01208]
[1740475570135,0.01757961,89301.0,89292.0,0.001]
[1740475570617,0.0083099,89293.0,89281.0,0.02662085]
[1740475570820,0.0083099,89293.0,89282.0,0.03501209]
[1740475571224,0.0083099,89293.0,89262.0,0.1681185]
[1740475571448,0.06,89278.0,89263.0,0.01208]
[1740475571663,0.06,89278.0,89251.0,0.1681185]
[1740475571664,0.06,89277.0,89251.0,0.1681185]
[1740475572006,0.15,89280.0,89252.0,0.08943444]
[1740475572123,0.077399,89278.0,89262.0,0.01454085]
[1740475572458,0.077399,89278.0,89264.0,0.01454085]
[1740475574348,0.5,89278.0,89264.0,0.01454085]
[1740475575089,0.15,89277.0,89250.0,0.000849]
[1740475575345,0.2312,89275.0,89250.0,0.000849]
[1740475575646,0.0084644,89265.0,89250.0,0.000849]
[1740475578268,0.15,89264.0,89251.0,0.01454085]